bitfinex/quotes_SOLUSD_20240917
["timestamp","ask_amount","ask_price","bid_price","bid_amount"]
[1726585673602,6.6654,134.45,134.39,0.25098]
[1726585674306,6.6654,134.45,134.39,24.027864]
[1726585674677,6.6654,134.45,134.38,31.469364]
[1726585674898,6.6654,134.45,134.38,24.027864]
[1726585675789,6.6654,134.45,134.38,31.469164]
[1726585676399,6.6654,134.45,134.38,24.027864]
[1726585676990,6.6654,134.45,134.38,31.469164]
[1726585677886,6.6654,134.45,134.38,0.25098]
[1726585678173,6.6654,134.45,134.36,7.4425]
[1726585678410,6.6654,134.45,134.35,7.723989]
[1726585678581,6.6654,134.45,134.36,7.4426]
[1726585678786,6.6654,134.45,134.35,7.723989]
[1726585680021,6.6654,134.45,134.35,0.280889]
[1726585680512,6.6654,134.45,134.36,7.4422]
[1726585681121,6.6654,134.45,134.37,24.027864]
[1726585681287,6.6654,134.45,134.4,24.027864]
[1726585681612,6.6654,134.45,134.4,31.468264]
[1726585682407,6.6654,134.45,134.4,0.25098]
[1726585682911,6.6654,134.45,134.4,7.69138]
[1726585683481,6.6654,134.45,134.4,0.25098]
[1726585683883,22.3967,134.48,134.42,0.25098]
[1726585684106,15.7581,134.48,134.45,23.902374]
[1726585684403,15.7581,134.48,134.45,0.12549]
[1726585684783,15.779,134.51,134.45,7.56309]
[1726585684987,15.779,134.51,134.48,0.12549]
[1726585685211,15.779,134.51,134.48,0.25098]
[1726585685594,15.779,134.51,134.48,24.027864]
[1726585686035,15.779,134.51,134.48,0.25098]
[1726585686238,15.779,134.51,134.46,0.25098]
[1726585686932,15.779,134.51,134.46,0.12549]
[1726585687518,15.779,134.51,134.45,7.56309]
[1726585687717,15.779,134.51,134.46,7.4371]
[1726585687938,15.779,134.51,134.45,7.56309]
[1726585688234,15.779,134.51,134.46,7.56249]
[1726585688405,15.779,134.51,134.47,0.12549]
[1726585688908,15.779,134.51,134.42,7.4392]
[1726585689133,15.779,134.51,134.41,26.0392]
[1726585689438,15.779,134.51,134.41,18.5994]
[1726585689952,15.779,134.51,134.41,20.08496358]
[1726585690243,15.779,134.51,134.38,6.6405]
[1726585690411,20.0,134.5,134.39,7.4405]
[1726585690616,15.779,134.51,134.4,18.5999]
[1726585690816,15.779,134.51,134.42,7.4392]
[1726585691021,15.779,134.51,134.41,7.4398]
[1726585691423,15.279,134.51,134.41,7.4398]
[1726585691647,15.279,134.51,134.42,7.4393]
[1726585691819,15.279,134.51,134.43,7.56419]
[1726585692027,15.279,134.51,134.43,0.12549]
[1726585692750,15.279,134.51,134.44,0.12549]
[1726585693528,23.776884,134.5,134.39,18.6023]
[1726585694137,23.776884,134.5,134.39,26.0432]
[1726585694537,23.776884,134.5,134.4,7.4403]
[1726585695327,23.776884,134.5,134.39,26.0431]
[1726585695529,23.776884,134.5,134.4,0.25098]
[1726585696337,20.0,134.5,134.4,24.027864]
[1726585696641,20.0,134.5,134.39,18.6023]
[1726585696642,23.776884,134.49,134.42,0.25098]
[1726585696840,20.0,134.5,134.42,0.25098]
[1726585697231,15.279,134.51,134.42,7.69028]
[1726585697848,15.279,134.51,134.44,0.25098]
[1726585698127,15.279,134.51,134.44,24.027864]
[1726585698565,15.279,134.51,134.47,0.25098]
[1726585699246,15.279,134.51,134.47,7.68708]
[1726585699449,6.8043961,134.52,134.49,7.68628]
[1726585699450,0.1657961,134.52,134.49,7.68628]
[1726585699654,0.1657961,134.52,134.51,7.68528]
[1726585700029,0.1657961,134.52,134.51,31.462164]
[1726585700463,0.1657961,134.52,134.51,32.84902837]
[1726585700627,16.5357,134.58,134.55,24.027864]
[1726585700831,0.4466851,134.59,134.55,0.25098]
[1726585702944,0.4466851,134.59,134.54,24.027864]
[1726585703147,0.4466851,134.59,134.54,32.79796381]
[1726585703347,0.4466851,134.59,134.54,24.027864]
[1726585703546,0.4466851,134.59,134.53,24.027864]
[1726585703746,0.4466851,134.59,134.53,0.25098]
[1726585704266,0.4466851,134.59,134.51,8.77009981]
[1726585704461,0.4466851,134.59,134.51,16.20439981]
[1726585704686,0.4466851,134.59,134.52,7.4337]
[1726585704878,0.4466851,134.59,134.53,7.4332]
[1726585705244,0.4466851,134.59,134.53,23.902374]
[1726585705463,0.4466851,134.59,134.53,24.027864]
[1726585705672,0.4466851,134.59,134.53,31.461064]
[1726585705877,0.4466851,134.59,134.53,40.24626429]
[1726585706043,0.4466851,134.59,134.55,23.776884]
[1726585706249,0.4466851,134.59,134.56,0.25098]
[1726585706450,0.4466851,134.59,134.58,0.25098]
[1726585709090,0.4466851,134.59,134.57,0.25098]
[1726585710757,0.4466851,134.59,134.57,0.12549]
[1726585712285,0.4466851,134.59,134.51,7.4343]
[1726585712656,0.4466851,134.59,134.49,34.8044957]
[1726585712883,7.8766851,134.59,134.49,8.7817957]
[1726585713052,24.2235691,134.59,134.48,7.436]
[1726585713361,20.0,134.58,134.47,31.2427957]
[1726585713561,23.776884,134.57,134.47,22.461]
[1726585713779,23.776884,134.57,134.46,15.21285605]
[1726585713948,23.776884,134.57,134.46,7.77575605]
[1726585714658,23.776884,134.57,134.47,0.12549]
[1726585714966,23.776884,134.57,134.46,7.77575605]
[1726585715182,23.776884,134.57,134.47,0.12549]
[1726585715183,28.8895,134.56,134.47,0.12549]
[1726585715381,51.209084,134.55,134.44,8.78758267]
[1726585715589,7.4327,134.54,134.43,7.78142054]
[1726585715761,21.4578,134.56,134.43,7.78142054]
[1726585715762,66.337984,134.53,134.43,7.78142054]
[1726585715969,66.337984,134.53,134.4,7.4403]
[1726585716299,66.337984,134.53,134.4,15.22322029]
[1726585716300,23.776884,134.51,134.4,15.22322029]
[1726585716500,6.3301,134.52,134.41,7.4399]
[1726585717086,6.3301,134.52,134.4,15.22322029]
[1726585717389,6.3301,134.52,134.4,7.78292029]
[1726585717584,6.3301,134.52,134.41,7.4398]
[1726585717781,6.3301,134.52,134.42,24.027864]
[1726585718093,6.3301,134.52,134.42,31.467164]
[1726585718392,6.3301,134.52,134.42,0.25098]
[1726585718794,23.776884,134.51,134.42,0.12549]
[1726585718999,16.6459,134.5,134.4,24.02347706]
[1726585719200,16.6459,134.5,134.43,7.4387]
[1726585719492,16.6459,134.5,134.42,7.4392]
[1726585719897,16.6459,134.5,134.41,18.5988]
[1726585720271,16.6459,134.5,134.42,7.56439]
[1726585720691,16.6459,134.5,134.44,0.12549]
[1726585721695,16.6459,134.5,134.43,0.12549]
[1726585721997,16.6459,134.5,134.43,0.25098]
[1726585723590,16.6459,134.5,134.43,31.466564]
[1726585723805,16.6459,134.5,134.44,7.4381]
[1726585724098,16.6459,134.5,134.45,0.25098]
[1726585725295,16.6459,134.5,134.46,0.25098]
[1726585725597,16.6459,134.5,134.44,8.92823665]
[1726585725771,16.6459,134.5,134.44,7.56359]
[1726585726198,16.6459,134.5,134.44,0.12549]
[1726585727769,16.6459,134.5,134.45,0.12549]
[1726585728600,16.6459,134.5,134.42,7.4393]
[1726585729181,16.6459,134.5,134.41,7.4397]
[1726585729381,16.6459,134.5,134.41,7.4398]
[1726585729598,6.0218,134.49,134.4,7.78203963]
[1726585729893,6.0218,134.49,134.39,16.25373509]
[1726585729894,6.0218,134.49,134.39,7.4409]
[1726585730204,6.0218,134.49,134.4,7.4403]
[1726585731012,6.0218,134.49,134.41,20.12549]
[1726585731188,6.0218,134.49,134.44,0.12549]
[1726585732402,6.0218,134.49,134.44,7.56369]
[1726585732713,6.0218,134.49,134.45,0.12549]
[1726585734389,6.0218,134.49,134.43,8.81283509]
[1726585734596,6.0218,134.49,134.43,7.4388]
[1726585735404,6.0218,134.49,134.4,18.6005]
[1726585735405,6.0218,134.49,134.42,18.5976]
[1726585735582,6.0218,134.49,134.43,24.027864]
[1726585736408,6.0218,134.49,134.44,18.5948]
[1726585736710,5.5218,134.49,134.45,24.027864]
[1726585737096,5.5218,134.49,134.47,0.25098]
[1726585737299,5.5218,134.49,134.47,0.12549]
[1726585737692,5.5218,134.49,134.46,0.12549]
[1726585740609,5.5218,134.49,134.42,7.4392]
[1726585740916,5.5218,134.49,134.41,18.5989]
[1726585740917,5.5218,134.49,134.41,26.0386]
[1726585741117,5.5218,134.49,134.4,8.80049586]
[1726585741286,16.0959,134.48,134.39,16.51802124]
[1726585741488,16.0959,134.48,134.4,18.6007]
[1726585741996,16.0959,134.48,134.4,26.041]
[1726585742592,16.0959,134.48,134.41,0.25098]
[1726585744205,16.0959,134.48,134.41,7.69068]
[1726585745908,16.0959,134.48,134.43,7.68968]
[1726585746110,16.0959,134.48,134.43,0.25098]
[1726585746804,16.0959,134.48,134.43,7.68968]
[1726585747224,16.0959,134.48,134.43,0.25098]
[1726585750012,14.5859,134.48,134.44,0.25098]
[1726585750602,14.5859,134.48,134.43,8.7893992]
[1726585750800,14.5859,134.48,134.4,9.30433884]
[1726585751039,14.5859,134.48,134.4,9.30968844]
[1726585751200,14.5859,134.48,134.39,19.89894873]
[1726585751403,14.5859,134.48,134.41,27.90936428]
[1726585751600,14.5859,134.48,134.42,7.4392]
[1726585751944,14.5859,134.48,134.41,26.039]
[1726585752099,14.5859,134.48,134.42,23.902374]
[1726585752429,14.5859,134.48,134.44,0.12549]
[1726585752621,14.5859,134.48,134.44,0.25098]
[1726585755004,15.7605,134.51,134.44,24.027864]
[1726585755336,15.7605,134.51,134.48,0.25098]
[1726585755517,15.7605,134.51,134.48,9.022346]
[1726585755836,15.7605,134.51,134.48,16.458346]
[1726585756023,15.7605,134.51,134.5,0.25098]
[1726585756333,15.7605,134.51,134.5,9.022346]
[1726585756927,15.7605,134.51,134.5,0.25098]
[1726585757239,15.7605,134.51,134.5,9.022346]
[1726585757743,0.2768251,134.53,134.5,9.54761014]
[1726585757943,0.2768251,134.53,134.5,18.30569402]
[1726585758109,0.2768251,134.53,134.52,0.12549]
[1726585758304,0.2768251,134.53,134.52,0.25098]
[1726585758526,0.2768251,134.53,134.52,9.00813058]
[1726585759426,0.2768251,134.53,134.52,10.23900473]
[1726585759614,0.2768251,134.53,134.52,9.00813058]
[1726585761235,0.2768251,134.53,134.52,9.00267245]
[1726585762431,0.2768251,134.53,134.52,18.29679301]
[1726585763322,0.2768251,134.53,134.52,9.00267245]
[1726585764416,0.2768251,134.53,134.52,25.73277608]
[1726585764615,0.2768251,134.53,134.52,9.00267245]
[1726585764816,0.2768251,134.53,134.52,0.25098]
[1726585765321,0.2768251,134.53,134.52,9.00678612]
[1726585768245,0.2768251,134.53,134.52,18.29527746]
[1726585768453,0.2768251,134.53,134.52,0.25098]
[1726585768629,0.2768251,134.53,134.52,9.00464999]
[1726585768838,0.2768251,134.53,134.52,18.30252846]
[1726585769029,0.2768251,134.53,134.52,18.31178167]
[1726585769645,0.2768251,134.53,134.52,40.22218804]
[1726585770350,0.2768251,134.53,134.52,60.22218804]
[1726585770717,0.1514251,134.53,134.52,110.22218804]
[1726585770920,2.51e-05,134.53,134.52,136.4123116]
[1726585771328,2.51e-05,134.53,134.52,125.46218804]
[1726585771947,2.51e-05,134.53,134.52,136.4123116]
[1726585772149,0.2812491,134.62,134.56,49.787484]
[1726585772459,0.2812491,134.62,134.56,67.82423336]
[1726585772756,0.2812491,134.62,134.56,58.53445812]
[1726585773047,0.2812491,134.62,134.56,59.32844119]
[1726585773238,0.2812491,134.62,134.56,68.07541531]
[1726585773446,0.2812491,134.62,134.56,58.78543812]
[1726585774361,0.2812491,134.62,134.56,27.57695412]
[1726585774529,0.2812491,134.62,134.56,18.82998]
[1726585775050,0.2812491,134.62,134.56,0.25098]
[1726585776961,0.2812491,134.62,134.53,36.62695491]
[1726585777261,16.5461491,134.57,134.52,8.75227532]
[1726585777464,16.5461491,134.57,134.5,35.31367959]
[1726585777630,16.5461491,134.57,134.5,27.87887959]
[1726585778132,16.5461491,134.57,134.5,18.5864]
[1726585778650,16.5461491,134.57,134.52,27.88781969]
[1726585778853,16.5461491,134.57,134.55,7.432]
[1726585779239,16.5461491,134.57,134.54,7.4325]
[1726585779447,16.5461491,134.57,134.55,24.027864]
[1726585779747,16.5461491,134.57,134.55,0.12549]
[1726585779954,16.5461491,134.57,134.53,0.25098]
[1726585780242,16.5461491,134.57,134.55,0.25098]
[1726585780868,16.5461491,134.57,134.54,0.25098]
[1726585781368,16.2649,134.57,134.54,0.25098]
[1726585781539,16.4132101,134.57,134.54,0.25098]
[1726585781873,16.4132101,134.57,134.54,0.12549]
[1726585783752,0.1483101,134.57,134.56,0.12549]
[1726585784632,0.1483101,134.57,134.56,31.459464]
[1726585784838,0.1483101,134.57,134.56,24.027864]
[1726585786053,0.1483101,134.57,134.56,31.459464]
[1726585788379,0.1483101,134.57,134.56,32.94423734]
[1726585788535,0.1483101,134.57,134.56,24.027864]
[1726585788967,0.1483101,134.57,134.56,31.459464]
[1726585789771,0.1483101,134.57,134.55,25.49939858]
[1726585789972,0.1483101,134.57,134.56,7.4316]
[1726585791081,0.1483101,134.57,134.56,31.459464]
[1726585791896,0.1483101,134.57,134.56,0.25098]
[1726585792970,0.1483101,134.57,134.56,31.459464]
[1726585793168,0.1483101,134.57,134.56,40.76341234]
[1726585793587,0.1483101,134.57,134.56,31.459464]
[1726585793893,0.1483101,134.57,134.56,40.76334776]
[1726585794274,0.1483101,134.57,134.56,49.52625117]
[1726585794473,0.1483101,134.57,134.56,40.76334776]
[1726585794696,0.1483101,134.57,134.56,49.52625117]
[1726585794897,0.1483101,134.57,134.56,40.76334776]
[1726585795101,0.1483101,134.57,134.56,49.52625117]
[1726585795396,0.1483101,134.57,134.56,40.76334776]
[1726585795583,0.1483101,134.57,134.56,49.52625117]
[1726585795783,0.1483101,134.57,134.56,40.76334776]
[1726585795989,0.1483101,134.57,134.56,49.52625117]
[1726585796198,0.1483101,134.57,134.56,40.76334776]
[1726585796396,0.1483101,134.57,134.56,58.80136741]
[1726585797584,0.0229101,134.57,134.56,93.67123777]
[1726585797968,0.0229101,134.57,134.56,78.80136741]
[1726585800483,0.0029101,134.57,134.56,78.80136741]
[1726585800686,0.0029101,134.57,134.56,78.79704362]
[1726585801200,0.0029101,134.57,134.56,54.7698391]
[1726585802497,0.0029101,134.57,134.56,78.7977031]
[1726585803201,0.0029101,134.57,134.56,78.79869539]
[1726585803779,0.262234,134.59,134.58,26.0068]
[1726585804100,0.262234,134.59,134.58,60.27933275]
[1726585804275,0.262234,134.59,134.58,27.33653139]
[1726585804469,0.262234,134.59,134.58,8.76023139]
[1726585805076,15.841,134.58,134.53,7.77190815]
[1726585805374,15.841,134.58,134.57,9.30384753]
[1726585805986,15.841,134.58,134.56,9.30384753]
[1726585806381,15.841,134.58,134.57,0.12549]
[1726585807081,15.841,134.58,134.57,9.42933753]
[1726585807378,15.841,134.58,134.57,0.12549]
[1726585807707,15.841,134.58,134.57,0.25098]
[1726585808501,15.841,134.58,134.56,9.30384753]
[1726585808502,15.841,134.58,134.56,0.25098]
[1726585808805,15.841,134.58,134.55,9.30384753]
[1726585808983,15.841,134.58,134.52,26.0178]
[1726585808984,15.841,134.58,134.54,9.30384753]
[1726585809172,15.841,134.58,134.53,9.30384753]
[1726585810698,15.841,134.58,134.52,7.4337]
[1726585810999,15.841,134.58,134.53,9.30636944]
[1726585811203,15.841,134.58,134.54,9.30636944]
[1726585812502,15.841,134.58,134.53,9.30636944]
[1726585813810,15.841,134.58,134.54,9.43185944]
[1726585814011,15.841,134.58,134.56,0.12549]
[1726585814187,15.841,134.58,134.57,0.12549]
[1726585814720,0.262234,134.59,134.57,7.68198]
[1726585815005,0.262234,134.59,134.58,7.55599]
[1726585815208,0.262234,134.59,134.58,17.96366279]
[1726585815795,0.262234,134.59,134.58,25.39416279]
[1726585816204,0.262234,134.59,134.58,39.86467735]
[1726585817109,0.06627004,134.59,134.58,147.01727735]
[1726585817628,0.262234,134.63,134.62,46.24998]
[1726585817793,0.262234,134.63,134.62,79.91787494]
[1726585818424,0.262234,134.63,134.62,78.43317735]
[1726585819613,0.262234,134.63,134.62,128.43317735]
[1726585819818,0.011434,134.63,134.62,140.86784568]
[1726585820318,0.262234,134.67,134.66,49.768184]
[1726585820624,0.262234,134.67,134.66,162.3348391]
[1726585820817,0.262234,134.71,134.7,75.9836]
[1726585820996,0.262234,134.71,134.7,95.9836]
[1726585821511,0.262234,134.71,134.7,104.38061447]
[1726585821743,0.262234,134.71,134.7,141.75109447]
[1726585822239,0.262234,134.71,134.7,165.52797847]
[1726585822444,16.6584,134.77,134.71,0.25098]
[1726585822655,5.18190833,134.95,134.75,23.776884]
[1726585822656,0.3213954,134.76,134.75,23.776884]
[1726585823237,0.3213954,134.76,134.75,31.197984]
[1726585823537,0.3213954,134.76,134.75,51.197984]
[1726585823704,0.3213954,134.76,134.75,51.58482806]
[1726585823911,0.2934582,134.81,134.8,49.741084]
[1726585824518,0.2934582,134.81,134.8,49.866574]
[1726585824705,0.2934582,134.81,134.8,69.992064]
[1726585826515,0.2934582,134.81,134.8,62.573764]
[1726585827444,0.2934582,134.81,134.8,42.573764]
[1726585829227,0.2934582,134.81,134.8,49.992064]
[1726585830134,0.2934582,134.81,134.8,42.573764]
[1726585830340,0.2934582,134.81,134.8,0.12549]
[1726585831944,16.7182582,134.81,134.8,0.12549]
[1726585832432,16.7182582,134.81,134.73,18.5552]
[1726585832630,16.7182582,134.81,134.7,18.5592]
[1726585832830,16.7182582,134.81,134.72,7.4228]
[1726585833158,16.7182582,134.81,134.73,7.4222]
[1726585833329,16.7182582,134.81,134.74,7.4216]
[1726585833533,16.7182582,134.81,134.73,7.4221]
[1726585833854,16.7182582,134.81,134.74,7.4216]
[1726585834571,16.7182582,134.81,134.75,0.12549]
[1726585835533,16.7182582,134.81,134.72,18.5558]
[1726585835734,16.7182582,134.81,134.73,0.12549]
[1726585835951,16.7182582,134.81,134.73,23.902374]
[1726585836252,16.7182582,134.81,134.75,23.902374]
[1726585836625,16.7182582,134.81,134.77,0.12549]
[1726585837034,16.7182582,134.81,134.76,0.12549]
[1726585837231,16.7182582,134.81,134.77,0.12549]
[1726585838054,16.7182582,134.81,134.78,0.12549]
[1726585838757,16.7182582,134.81,134.77,0.12549]
[1726585839342,16.7182582,134.81,134.78,0.12549]
[1726585840944,16.2182582,134.81,134.78,0.12549]
[1726585841253,16.2182582,134.81,134.79,0.12549]
[1726585841760,16.2182582,134.81,134.77,0.12549]
[1726585842057,16.2182582,134.81,134.77,0.25098]
[1726585842259,16.2182582,134.81,134.77,24.027864]
[1726585842468,16.2182582,134.81,134.77,31.447464]
[1726585842662,16.2182582,134.81,134.78,7.4194]
[1726585842830,16.2182582,134.81,134.79,0.25098]
[1726585843867,16.2182582,134.81,134.79,0.12549]
[1726585844049,16.2182582,134.81,134.77,0.25098]
[1726585844363,16.2182582,134.81,134.79,0.12549]
[1726585844546,16.2182582,134.81,134.78,7.4193]
[1726585844739,16.2182582,134.81,134.79,0.25098]
[1726585845637,16.2182582,134.81,134.79,8.90107013]
[1726585845841,16.2182582,134.81,134.8,0.25098]
[1726585846533,16.2182582,134.81,134.79,0.25098]
[1726585846738,16.2182582,134.81,134.77,23.776884]
[1726585846966,16.2182582,134.81,134.77,0.25098]
[1726585847167,16.2182582,134.81,134.77,0.12549]
[1726585847545,16.2182582,134.81,134.77,7.4199]
[1726585847746,16.2182582,134.81,134.78,0.12549]
[1726585847954,16.2182582,134.81,134.78,7.54489]
[1726585848159,6.5424,134.82,134.8,0.12549]
[1726585849183,21.6955582,134.85,134.8,0.12549]
[1726585849975,21.6955582,134.85,134.77,18.5497]
[1726585850150,21.6955582,134.85,134.77,25.9693]
[1726585850355,21.6955582,134.85,134.75,7.421]
[1726585850573,7.4163,134.84,134.74,7.4216]
[1726585850871,21.6955582,134.85,134.75,7.4207]
[1726585851047,29.1115582,134.85,134.75,18.5522]
[1726585851258,7.4166,134.84,134.73,7.4218]
[1726585851764,29.1113582,134.85,134.74,7.4215]
[1726585852082,21.6955582,134.85,134.75,7.4211]
[1726585852281,21.6955582,134.85,134.76,18.5512]
[1726585852484,21.6955582,134.85,134.79,0.25098]
[1726585852649,29.1113582,134.85,134.78,0.12549]
[1726585852853,29.1113582,134.85,134.74,10.95012356]
[1726585852854,29.1115582,134.85,134.74,7.4215]
[1726585853056,29.1115582,134.85,134.75,18.67809]
[1726585853279,21.6955582,134.85,134.75,18.67809]
[1726585854081,21.6955582,134.85,134.77,0.25098]
[1726585854284,21.6955582,134.85,134.79,0.25098]
[1726585854462,21.6955582,134.85,134.81,0.25098]
[1726585855083,21.6955582,134.85,134.81,7.66868]
[1726585858286,21.6955582,134.85,134.81,0.25098]
[1726585858774,21.6955582,134.85,134.81,7.66858]
[1726585860167,21.6955582,134.85,134.81,0.12549]
[1726585860484,21.6955582,134.85,134.79,32.09621374]
[1726585860652,21.6955582,134.85,134.79,25.9654]
[1726585860857,21.6955582,134.85,134.78,15.42043659]
[1726585860858,15.4207,134.84,134.78,15.42043659]
[1726585861053,15.4207,134.84,134.74,27.84352285]
[1726585861252,15.4207,134.84,134.76,9.29120531]
[1726585861474,15.4207,134.84,134.76,17.67684516]
[1726585861677,15.4207,134.84,134.77,8.38563985]
[1726585861874,15.4207,134.84,134.76,17.67684516]
[1726585862056,15.4207,134.84,134.77,8.38563985]
[1726585862269,15.4207,134.84,134.78,8.38563985]
[1726585862578,15.4207,134.84,134.79,8.38563985]
[1726585862887,13.7472582,134.85,134.77,8.38582175]
[1726585862888,7.4176,134.82,134.77,8.38582175]
[1726585863076,15.296,134.78,134.74,6.13199858]
[1726585863276,15.296,134.78,134.75,6.13199858]
[1726585863483,15.296,134.78,134.73,9.29120531]
[1726585863655,15.296,134.78,134.74,6.13199858]
[1726585863860,15.296,134.78,134.71,7.73299132]
[1726585863861,22.7155,134.78,134.72,6.1339982]
[1726585864058,22.7155,134.78,134.71,7.73299132]
[1726585864373,22.7155,134.78,134.7,0.2934582]
[1726585864374,7.4204,134.77,134.7,0.2934582]
[1726585864682,37.3716582,134.85,134.7,0.2934582]
[1726585864683,29.6003,134.76,134.7,0.2934582]
[1726585864981,22.1797,134.76,134.7,0.2934582]
[1726585867270,22.1797,134.76,134.7,9.58466351]
[1726585867475,22.1797,134.76,134.7,0.2934582]
[1726585869992,6.3122,134.73,134.7,0.2934582]
[1726585870370,13.7345,134.73,134.66,9.2950391]
[1726585870574,13.7345,134.73,134.65,0.2934582]
[1726585870575,15.8418,134.72,134.65,9.5884973]
[1726585870977,23.2648,134.72,134.65,0.2934582]
[1726585871190,7.4239,134.71,134.65,0.2934582]
[1726585871360,23.2646,134.72,134.65,0.2934582]
[1726585872076,22.7268,134.71,134.65,0.2934582]
[1726585872269,7.4239,134.7,134.65,0.2503499]
[1726585872492,30.1502,134.71,134.65,0.2503499]
[1726585872793,16.0829,134.68,134.61,9.61028177]
[1726585873292,16.0829,134.68,134.61,0.3127015]
[1726585873909,23.5081,134.68,134.61,9.61028177]
[1726585874190,10.0,134.72,134.61,9.61028177]
[1726585874191,30.3788,134.67,134.61,0.3127015]
[1726585875190,6.1073,134.63,134.59,9.30029362]
[1726585875389,6.1073,134.63,134.57,6.00384702]
[1726585875390,6.1073,134.63,134.57,15.30414064]
[1726585875702,6.1073,134.63,134.57,9.30029362]
[1726585875875,6.1073,134.63,134.56,9.61299512]
[1726585876190,6.1073,134.63,134.56,0.3127015]
[1726585876390,15.2415,134.62,134.56,0.3127015]
[1726585877287,15.2415,134.62,134.56,1.79860423]
[1726585877886,15.2415,134.62,134.56,0.3127015]
[1726585878187,15.2415,134.62,134.56,1.7986094]
[1726585878698,15.2415,134.62,134.56,0.3127015]
[1726585879490,15.2415,134.62,134.58,7.4303]
[1726585879663,15.2415,134.62,134.59,1.48562526]
[1726585879868,15.2415,134.62,134.59,7.4297]
[1726585880069,15.2415,134.62,134.56,6.317449]
[1726585880277,15.2415,134.62,134.56,7.7441015]
[1726585880462,15.2415,134.62,134.58,0.12549]
[1726585880672,15.2415,134.62,134.58,7.55589]
[1726585880874,15.2415,134.62,134.57,18.5773]
[1726585881067,15.2415,134.62,134.57,26.0079]
[1726585881269,15.2415,134.62,134.59,7.4297]
[1726585881474,15.2415,134.62,134.58,7.55589]
[1726585881903,15.2415,134.62,134.57,26.0082]
[1726585882676,15.2415,134.62,134.56,0.3127015]
[1726585882892,15.2415,134.62,134.56,7.7442015]
[1726585883106,15.2415,134.62,134.57,7.4309]
[1726585884701,15.2415,134.62,134.56,18.8910015]
[1726585884924,15.2415,134.62,134.56,26.3224015]
[1726585885095,15.2415,134.62,134.57,7.68188]
[1726585885279,15.2415,134.62,134.59,0.25098]
[1726585886094,15.2415,134.62,134.58,26.0058]
[1726585887706,15.2415,134.62,134.57,0.12549]
[1726585888273,15.2415,134.62,134.58,0.12549]
[1726585889116,15.2415,134.62,134.6,7.68028]
[1726585889284,15.2415,134.62,134.61,7.67978]
[1726585889815,15.2415,134.62,134.61,0.25098]
[1726585889981,15.2415,134.62,134.6,0.12549]
[1726585890184,15.2415,134.62,134.59,18.5744]
[1726585891514,15.2415,134.62,134.59,26.0043]
[1726585892818,15.2415,134.62,134.6,23.902374]
[1726585893117,15.2415,134.62,134.61,7.4288]
[1726585893316,15.2415,134.62,134.6,0.25098]
[1726585893613,15.2415,134.62,134.6,24.027864]
[1726585894387,15.2415,134.62,134.6,7.67988]
[1726585894589,15.2415,134.62,134.6,0.25098]
[1726585894908,15.2415,134.62,134.6,31.457164]
[1726585895315,15.2415,134.62,134.6,24.027864]
[1726585895615,15.2415,134.62,134.6,31.457164]
[1726585895810,15.2415,134.62,134.59,26.0043]
[1726585896023,15.2415,134.62,134.6,0.12549]
[1726585896203,15.2415,134.62,134.6,7.68028]
[1726585896801,15.2415,134.62,134.6,0.25098]
[1726585898225,15.2415,134.62,134.61,7.67978]
[1726585898437,23.0731,134.66,134.62,24.027864]
[1726585898728,23.0731,134.66,134.63,7.4272]
[1726585899592,23.0731,134.66,134.62,31.455964]
[1726585899798,23.0731,134.66,134.62,0.25098]
[1726585900328,23.0731,134.66,134.62,7.67918]
[1726585901519,23.0731,134.66,134.63,0.7211829]
[1726585902026,23.0731,134.66,134.64,0.25098]
[1726585902236,6.0001,134.69,134.65,24.027864]
[1726585902528,6.0001,134.69,134.65,50.020464]
[1726585902707,6.0001,134.69,134.65,0.25098]
[1726585903505,6.0001,134.69,134.65,7.67758]
[1726585903902,6.0001,134.69,134.65,7.17758]
[1726585904098,6.0001,134.69,134.66,7.426]
[1726585904316,6.0001,134.69,134.67,7.4255]
[1726585904733,15.8079,134.7,134.67,7.4255]